Cogmind - Beta 15 @@@ ROGUE MODE // 2025.06.27 @ 19:30:07 Player: Wulphy Result: Destroyed by H-88 Terminator with Heavy Machine Gun Performance ------------- Evolutions (9) 4500 Regions Visited (25) 5000 Robots Destroyed (312) 1560 Value Destroyed (16895) 16895 Prototype IDs (73) 1460 Alien Tech Used (2) 400 Bonus (18894) 18894 TOTAL SCORE: 48709 Bonus ------- High Alert Combat Kills 1632 Follower Combat Kills 2378 Network Hubs Disabled 400 Destroyed Z-Imprinter 1000 Met Warlord at Base 500 MAIN.C Attacked Warlord 500 Built Enhanced Grunts 300 Met R17 at Cetus 500 Met R17 at Research 2000 Destroyed MAIN.C Guards 500 Met MAIN.C 5000 Destroyed MAIN.C Shell 5000 Met Warlord at Command 2000 Friendly Fire -2816 Cogmind --------- Core Integrity 0/1600 Matter 237/300 Energy 64/100 System Corruption 31% Temperature Cool (0) Movement Core (50) Location -1/Command Parts ------- > --- POWER (3) -------- (None) > --- PROPULSION (6) --- (None) > --- UTILITY (12) ----- (None) > --- WEAPON (4) ------- (None) > --- INVENTORY (5) ---- Experimental Coolant Injector Advanced Force Field Hacking Drone Bay (1/1) Peak State ------------ > --- POWER ------------ Quantum Reactor Reinforced Quantum Reactor Improved Quantum Reactor > --- PROPULSION ------- Centrium Heavy Treads Centrium Heavy Treads Enhanced Armored Heavy Treads > --- UTILITY ---------- Experimental Thermal Generator Experimental Cooling System Experimental Cooling System Experimental Coolant Injector Huge Storage Unit Experimental Energy Well Experimental Targeting Computer Experimental Core Analyzer Centrium Medium Armor Plating Centrium Medium Armor Plating Experimental Thermal Shield AEGIS Remote Shield > --- WEAPON ----------- Cooled Phase Gun Cooled Phase Gun Long-range Phase Cannon Enhanced Nova Cannon > --- INVENTORY -------- Quantum Reactor Heavy Siege Treads Heavy Siege Treads Experimental Coolant Injector Zionite Biocell Improved Matter Compressor Improved Matter Compressor Long-range Terrain Scanner Seismic Detector Advanced Kinecellerator Advanced Force Field Advanced Point Defense System Authchip [Armor] Long-range Tractor Beam Hacking Drone Bay Advanced Variable Charge Gun Hypercooled Linear Accelerator Hypercooled Linear Accelerator Hypercooled Linear Accelerator Hypercooled Linear Accelerator Advanced Micro-nuke Launcher Sigix Terminator [Rating: 234] Favorites ----------- Power Vortex Chain Reactor Engine Ion Engine Power Core Enhanced Nuclear Core Reactor Vortex Chain Reactor Propulsion Medium Treads Treads Medium Treads Leg Aluminum Leg Wheel Armored Wheel Hover Unit Improved Antigrav System Flight Unit Diametric Drive Utility High-capacity Storage Unit Device Seismic Detector Storage High-capacity Storage Unit Processor Experimental Core Analyzer Hackware Experimental Hacking Suite Protection Centrium Medium Armor Plating Weapon Phase Gun Energy Gun Phase Gun Energy Cannon Cooled Particle Cannon Ballistic Gun Hypervelocity Gauss Rifle Ballistic Cannon Mini Assault Cannon Launcher Precision Grenade Launcher Special Weapon Mining Laser Impact Weapon Thunder Hammer Slashing Weapon Axe Piercing Weapon CR-A16's Pointy Stick Build | -11 -10 -9 -9 -8 -7 -7 -6 -6 -5 -5 -5 -5 -5 -4 -4 -4 -4 -4 -4 -3 -3 -2 -2 -1 -1 ------- Run | Yrd Mat Mat Min Mat Fac Low Zio Dee Pro Fac Upp Upp War Pro Fac Ext Cet Arc Hub Res Tes Res Qua Acc Com Slots Evolved 18 | . . 2 . 2 2 . . . . 4 . . . . 2 . . . . 2 . 2 . 2 . Power 2 | . . . . . . . . . . 1 . . . . . . . . . . . 1 . . . Propulsion 4 | . . 1 . 1 . . . . . . . . . . 2 . . . . . . . . . . Utility 10 | . . 1 . . 1 . . . . 3 . . . . . . . . . 2 . 1 . 2 . Weapon 2 | . . . . 1 1 . . . . . . . . . . . . . . . . . . . . Parts Attached 304 | 7 4 8 . 13 26 2 8 27 5 49 6 3 9 2 25 12 7 3 6 15 20 10 16 12 9 Power 24 | 1 . . . 2 2 . . 3 1 4 1 . 1 . . . . . . . . 5 2 1 1 Engine 5 | 1 . . . 2 1 . . 1 . . . . . . . . . . . . . . . . . Core 5 | . . . . . 1 . . . . 3 1 . . . . . . . . . . . . . . Reactor 14 | . . . . . . . . 2 1 1 . . 1 . . . . . . . . 5 2 1 1 Propulsion 50 | 2 2 2 . 4 7 . 2 4 1 4 . . 1 . 9 . 3 . 1 2 . 2 1 2 1 Treads 30 | . 2 1 . 3 6 . 1 2 . . . . . . 3 . 3 . 1 2 . 2 1 2 1 Leg 3 | 2 . . . . . . . . . . . . 1 . . . . . . . . . . . . Wheel 11 | . . 1 . 1 1 . 1 . 1 4 . . . . 2 . . . . . . . . . . Hover 5 | . . . . . . . . 2 . . . . . . 3 . . . . . . . . . . Flight 1 | . . . . . . . . . . . . . . . 1 . . . . . . . . . . Utility 133 | 2 1 3 . 2 7 2 4 13 1 19 3 1 5 1 8 7 3 3 3 9 14 3 10 5 4 Device 76 | 1 1 1 . 1 2 2 3 7 1 10 3 1 2 1 4 6 . 3 1 6 7 1 6 3 3 Storage 16 | 1 . 2 . . 1 . . 2 . 1 . . . . . . . . 1 1 5 . 1 1 . Processor 14 | . . . . . 3 . . . . 3 . . 1 . 2 . . . . 2 . 2 . . 1 Hackware 4 | . . . . . . . 1 . . 1 . . . . . . . . . . 1 . . 1 . Protection 23 | . . . . 1 1 . . 4 . 4 . . 2 . 2 1 3 . 1 . 1 . 3 . . Artifact . | . . . . . . . . . . . . . . . . . . . . . . . . . . Weapon 97 | 2 1 3 . 5 10 . 2 7 2 22 2 2 2 1 8 5 1 . 2 4 6 . 3 4 3 Energy Gun 37 | 1 . 2 . 4 3 . . 5 1 6 1 . 1 1 5 4 1 . . 1 1 . . . . Energy Cannon 16 | . . . . . 2 . . . . 4 1 . . . 1 . . . . 1 2 . 2 3 . Ballistic Gun 12 | 1 . . . 1 1 . . . 1 3 . 2 . . 1 . . . 1 1 . . . . . Ballistic Cannon 15 | . . . . . . . 2 2 . 5 . . . . . . . . . . 2 . 1 1 2 Launcher 9 | . . . . . 2 . . . . 2 . . . . 1 . . . 1 1 1 . . . 1 Special Weapon 4 | . 1 1 . . . . . . . . . . 1 . . 1 . . . . . . . . . Impact Weapon 2 | . . . . . 1 . . . . 1 . . . . . . . . . . . . . . . Slashing Weapon 1 | . . . . . 1 . . . . . . . . . . . . . . . . . . . . Piercing Weapon 1 | . . . . . . . . . . 1 . . . . . . . . . . . . . . . Special Melee Weapon . | . . . . . . . . . . . . . . . . . . . . . . . . . . Unidentified Prototypes 73 | . . 1 . . 6 . 4 13 . 6 . . 7 . 6 . 2 . 2 3 12 3 6 1 1 Corrupted Parts 2 | . . . . . . . . . . . . . . . 1 . . . 1 . . . . . . System Corruption 13 | . . . . . . . . . . . . . . . 2 . . . 11 . . . . . . Parts Lost 65 | . . 1 . 6 1 2 . 1 9 10 1 . . 1 . 1 . . 2 . . . 1 3 26 Power 8 | . . . . 2 . . . . . 3 . . . . . . . . . . . . . . 3 Propulsion 16 | . . 1 . 2 1 . . 1 2 3 . . . . . . . . . . . . . 1 5 Utility 23 | . . . . . . 1 . . 1 4 . . . . . 1 . . 1 . . . 1 1 13 Weapon 18 | . . . . 2 . 1 . . 6 . 1 . . 1 . . . . 1 . . . . 1 5 Highest Loss Streak 20 | . . 1 . 2 1 2 . 1 3 4 1 . . 1 . 1 . . 2 . . . 1 1 20 To Critical Strikes 1 | . . . . . . . . . . . . . . . . . . . . . . . . 1 . Average Backups 17 | 4 7 9 11 13 17 17 18 17 15 17 18 18 17 16 17 17 16 17 16 16 20 19 21 21 21 Power 1 | . 1 1 1 . . 1 1 1 2 1 1 1 1 1 1 1 1 1 1 1 1 . . 1 . Propulsion 1 | 2 3 2 3 3 3 5 4 3 2 1 . . . . . 1 . 1 1 1 1 1 2 1 1 Utility 9 | . . 1 3 6 8 5 6 8 7 9 10 11 11 11 11 9 10 10 10 10 11 12 13 12 11 Weapon 4 | 1 2 3 4 2 5 6 5 4 2 5 5 5 4 4 4 5 5 5 4 3 5 4 4 7 6 Tool/Special . | . . . . . . . . . . . . . . . . . . . . . . . . . . Unused Backups 42 | . . 1 . 1 5 . 1 2 . 10 1 . 4 . 2 5 1 . . . 1 1 5 2 . Power 1 | . . . . . . . . . . . . . . . . . . . . . . . 1 . . Propulsion 5 | . . . . . . . . . . 3 . . . . . 2 . . . . . . . . . Utility 21 | . . . . 1 4 . . 2 . 6 . . 3 . 2 2 . . . . . . 1 . . Weapon 14 | . . 1 . . 1 . . . . 1 1 . 1 . . 1 1 . . . 1 1 3 2 . Tool/Special 1 | . . . . . . . 1 . . . . . . . . . . . . . . . . . . Average Slot Usage (%) 87 | . 100 99 100 99 95 83 83 91 94 88 99 100 97 93 78 76 78 77 77 79 79 85 84 87 86 Core 2 | . . . . . 1 7 7 6 . 2 11 11 7 . . . . . . . . . . . . Reactor 4 | . . . . . . . . . 7 8 . . 1 5 5 5 5 5 5 4 4 12 13 12 11 Treads 13 | . 11 22 22 18 25 15 10 29 27 . . . . . 9 14 15 15 15 13 14 13 13 12 11 Wheel 6 | . . 11 11 17 3 7 11 . 1 17 23 23 23 23 7 . . . . . . . . . . Device 17 | . 14 21 22 16 12 7 6 6 21 17 23 23 21 17 11 23 21 25 22 22 23 24 20 26 27 Storage 5 | . 14 11 11 9 7 7 7 7 7 5 5 5 5 5 5 5 5 5 5 4 4 4 4 5 5 Processor 3 | . . . . . 5 . . . . 4 5 5 6 11 8 . . . . 2 2 4 8 8 9 Protection 5 | . . . . 1 2 7 7 7 . 4 5 5 5 5 4 4 9 5 8 10 9 8 7 8 5 Energy Gun 13 | . 9 18 20 22 22 22 12 20 21 4 5 5 6 10 11 19 21 21 20 14 12 15 8 6 2 Energy Cannon 2 | . . . . . 2 6 7 3 2 1 7 9 3 . . . . . . . 2 . 6 8 8 Ballistic Gun 2 | . 14 . . . . . . . . 7 2 3 10 11 7 . . . . 2 2 . . . . Ballistic Cannon 1 | . . . . . . . 9 6 . 4 4 3 . . . . . . . . . . . . 4 Peak Build Rating 234 | 7 7 18 18 26 49 53 69 85 80 100 100 92 119 114 142 143 159 159 160 179 192 210 216 234 234 Average Rating 113 | 5 6 17 17 20 36 50 55 68 69 91 92 91 97 113 128 135 152 154 154 171 179 200 206 223 220 On Entrance 100 | . 7 7 15 18 26 49 50 54 75 60 100 92 90 112 114 137 133 159 159 153 171 185 206 209 225 Naked Turns 7 | . . . . . . . . . . . . . . . . . . . . . . . . . 7 Heaviest Build 249 | 15 15 31 31 40 86 86 92 102 83 128 114 114 119 122 134 134 136 136 138 136 178 208 236 249 231 Greatest Support 240 | 20 40 40 16 26 88 28 96 112 112 56 56 56 56 56 225 225 235 235 235 235 230 230 240 240 230 Greatest Overweight (x) 6 | . . 1 1 1 4 3 3 . 2 6 2 2 2 2 2 . . . . . . . . 1 1 Average Overweight (x) . | . . . 1 1 1 3 2 . . 1 1 1 1 1 . . . . . . . . . . . Largest Inventory Capacity 25 | 8 8 15 15 15 20 20 20 20 20 20 20 20 20 20 20 20 20 20 20 20 25 25 25 25 25 Average Capacity 20 | 7 8 12 15 15 18 20 20 20 20 20 20 20 20 20 20 20 20 20 20 20 24 25 25 25 24 Most Carried 25 | 7 8 12 12 15 20 20 20 20 20 20 20 20 20 20 20 20 20 20 20 20 25 25 25 25 25 Average Carried 19 | 4 7 9 11 13 17 17 19 19 18 19 19 20 19 18 19 19 19 20 19 19 24 24 24 24 23 Final Capacity 25 | 8 8 15 15 15 20 20 20 20 20 20 20 20 20 20 20 20 20 20 20 20 25 25 25 25 5 Final Carried 25 | 7 7 11 12 15 20 18 20 20 20 20 20 20 20 18 20 20 20 20 18 20 25 22 25 25 3 Class Distribution -------------------- 36% | Scavenger-Tank 29% | Tank 9% | Commander-Tank 6% | Skirmisher 5% | Scavenger-Gunner 4% | Mutant 3% | Gunner 3% | Scavenger-Skirmisher Dominant Class ---------------- Mutant | -10/Materials Mutant | -9/Materials Mutant | -9/Mines Gunner | -8/Materials Scavenger-Skirmisher | -7/Factory Tank | -7/Lower Caves Tank | -6/Zion Scavenger-Tank | -6/Deep Caves Scavenger-Gunner | -5/Proximity Caves Scavenger-Tank | -5/Factory Tank | -5/Upper Caves Tank | -5/Upper Caves Skirmisher | -5/Warlord Skirmisher | -4/Proximity Caves Tank | -4/Factory Commander-Tank | -4/Extension Commander-Tank | -4/Cetus Commander-Tank | -4/Archives Scavenger-Tank | -4/Hub_04(d) Scavenger-Tank | -3/Research Scavenger-Tank | -3/Testing Scavenger-Tank | -2/Research Scavenger-Tank | -2/Quarantine Scavenger-Tank | -1/Access Scavenger-Tank | -1/Command Resources | -11 -10 -9 -9 -8 -7 -7 -6 -6 -5 -5 -5 -5 -5 -4 -4 -4 -4 -4 -4 -3 -3 -2 -2 -1 -1 ----------- Run | Yrd Mat Mat Min Mat Fac Low Zio Dee Pro Fac Upp Upp War Pro Fac Ext Cet Arc Hub Res Tes Res Qua Acc Com Matter Collected 12873 | 294 84 92 20 182 519 108 193 661 414 2009 541 96 228 434 1497 670 136 98 150 341 825 500 966 1144 671 Remotely 4315 | . . . . . . 61 . . . 308 3 . . 307 775 366 . . . . 385 290 802 785 233 Salvage Created 15752 | 131 169 230 222 663 568 72 . 414 1040 2493 140 . . 408 1899 1215 . 77 370 194 799 1017 1183 2037 411 Parts 628 | 13 9 14 8 22 30 2 . 21 41 103 3 . . 19 95 42 . 4 10 7 26 26 54 74 5 Haulers Intercepted 6 | . . . . 1 2 . . . . 2 . . . . 1 . . . . . . . . . . Recyclers Shooed 9 | . . . . 2 . . . . . 2 . . . . 1 1 . . . 1 1 . . 1 . Parts Field Recycled . | . . . . . . . . . . . . . . . . . . . . . . . . . . Retrieved Matter . | . . . . . . . . . . . . . . . . . . . . . . . . . . Parts Self-Destructed 49 | . . . . . . 2 . . 37 . 1 . . 9 . . . . . . . . . . . Prevented . | . . . . . . . . . . . . . . . . . . . . . . . . . . Kills | -11 -10 -9 -9 -8 -7 -7 -6 -6 -5 -5 -5 -5 -5 -4 -4 -4 -4 -4 -4 -3 -3 -2 -2 -1 -1 ------- Run | Yrd Mat Mat Min Mat Fac Low Zio Dee Pro Fac Upp Upp War Pro Fac Ext Cet Arc Hub Res Tes Res Qua Acc Com Combat Hostiles Destroyed 247 | . 6 10 5 10 5 4 . 3 30 29 5 . . 6 31 9 . . 6 2 9 22 20 27 8 Melee 1 | . . . . . . . . . . 1 . . . . . . . . . . . . . . . Guns 130 | . 6 10 5 9 5 1 . . 12 14 . . . 6 25 7 . . 4 1 7 8 7 2 1 Cannons 45 | . . . . . . . . 3 . 6 1 . . . . . . . . . 1 4 6 18 6 AOE 48 | . . . . . . 3 . . 17 2 4 . . . 4 . . . . . . 10 4 4 . Classes Destroyed 23 | 2 2 1 1 3 1 . . 2 2 2 . . . 1 . . . 1 1 . . 1 1 2 . Worker 9 | . . . . 1 . . . . . 3 . . . . 3 . . . . . . . 1 . 1 Builder 11 | . . . . . . . . . . 6 . . . . . 1 . . . . . . 2 2 . Tunneler 6 | 4 . . . . . . . . . 1 . . . . 1 . . . . . . . . . . Hauler 6 | . . . . 1 2 . . . . 2 . . . . 1 . . . . . . . . . . Recycler 18 | 1 . . 1 1 3 . . . . 3 . . . . 2 4 . . . . 1 . . 2 . Minesweeper 1 | . . . . . . . . . 1 . . . . . . . . . . . . . . . . Mechanic 1 | . . . . . . . . . . . . . . . . . . . . . . . . 1 . Operator 3 | . . . . . . . . . . . . . . . . . . 2 . 1 . . . . . Watcher 6 | . . . . . . . . . . 3 . . . . 1 . . . . . 2 . . . . Swarmer 57 | . 3 8 3 . . . . . 13 4 . . . . 14 . . . . . . 9 . 3 . Grunt 53 | . 3 . 1 3 2 4 . . 11 4 . . . . 1 5 . . 1 . 2 10 4 2 . Brawler 4 | . . . 1 . . . . . 2 . . . . . . . . . . . . . . 1 . Duelist 7 | . . . . . . . . . 2 2 . . . . . 1 . . 2 . . . . . . Protector 1 | . . . . . . . . . . . . . . . . . . . 1 . . . . . . Researcher 1 | . . . . . . . . . . . . . . . . . . . . . . . 1 . . Sentry 29 | . . 2 . 5 2 . . . 2 6 1 . . . 3 3 . . . 1 . . . 2 2 Hunter 18 | . . . . 2 . . . . . 3 2 . . . . . . . . 1 . . 6 4 . Programmer 54 | . . . . . 1 . . . . 10 2 . . 2 13 . . . 2 . 7 . 2 14 1 Behemoth 3 | . . . . . . . . . . . . . . . . . . . . . . . . 1 2 Quarantine Guard 8 | . . . . . . . . . . . . . . . . . . . . . . . 8 . . M Guard 1 | . . . . . . . . . . . . . . . . . . . . . . . . . 1 Enhanced Grunt 2 | . . . . . . . . 2 . . . . . . . . . . . . . . . . . Striker 3 | . . . . . . . . . . . . . . . . . . . . . . 3 . . . Z-Light 3 | . . . . . . . . 3 . . . . . . . . . . . . . . . . . Thug 2 | . . . . . . . . . . . . . . 2 . . . . . . . . . . . Savage 1 | . . . . . . . . . . . . . . 1 . . . . . . . . . . . Guerrilla 1 | . . . . . . . . . . . . . . . . . . . . . . . . . 1 Fireman 1 | . . . . . . . . 1 . . . . . . . . . . . . . . . . . Mutant 1 | . . . . . . . . . . . . . . 1 . . . . . . . . . . . Best Kill Streak 12 | 5 3 5 3 3 2 4 . 2 10 12 4 . . 3 5 7 . 1 2 1 3 12 8 7 3 Combat Bots Only 12 | . 3 5 3 3 2 4 . 2 10 6 4 . . 3 5 6 . . 2 1 3 12 6 6 3 Max Kills in Single Turn 6 | 1 1 1 1 1 1 1 . 1 4 4 1 . . 1 4 2 . 1 1 1 2 5 6 3 2 Gunslinging 2 | . . . . . . . . . . . . . . . 2 1 . . . . 1 . . . . Exploded 5 | . . . . . . 1 . . 4 1 1 . . . 4 . . . . . . 5 2 2 . Melee 1 | . . . . . . . . . . 1 . . . . . . . . . . . . . . . Uniques/NPCs Destroyed 2 | . . . . . . . . 1 . . . . . . . . . . . . . . . . 1 Z-Imprinter (-6/Deep Caves) MAIN.C Shell (-1/Command) Combat | -11 -10 -9 -9 -8 -7 -7 -6 -6 -5 -5 -5 -5 -5 -4 -4 -4 -4 -4 -4 -3 -3 -2 -2 -1 -1 -------- Run | Yrd Mat Mat Min Mat Fac Low Zio Dee Pro Fac Upp Upp War Pro Fac Ext Cet Arc Hub Res Tes Res Qua Acc Com Hostile Shots Fired 2168 | . 25 70 11 63 67 19 . 42 108 210 26 . 4 56 123 84 27 . 121 20 79 93 177 315 428 Missed 577 | . 6 19 3 10 23 2 . 16 43 55 8 . 2 16 37 21 12 . 26 3 18 17 42 70 128 Intercepted 2 | . . . . . . . . . . . . . . . . . . . . . . . . . 2 Hits 1591 | . 19 51 8 53 44 17 . 26 65 155 18 . 2 40 86 63 15 . 95 17 61 76 135 245 300 Melee 24 | . . . . . . . . . 2 8 . . . 1 . 5 . . 6 . . 1 . 1 . Projectile 1567 | . 19 51 8 53 44 17 . 26 63 147 18 . 2 39 86 58 15 . 89 17 61 75 135 244 300 AOE 12 | . . . . . . . . . . . . . . . . . . . . . . 2 . 2 8 Critical Strikes 75 | . . 2 . 2 1 1 . . 4 12 1 . . 3 1 5 1 . 3 . 6 6 6 9 12 Part Disruptions 19 | . . . . . 1 . . . . 1 1 . . . . . . . 1 . 1 . . . 14 Damage Taken 26460 | . 178 563 80 817 359 321 . 811 1287 2953 232 . 30 562 934 775 241 . 1611 329 904 1025 2392 2692 7364 Core 2753 | . 31 57 12 75 35 27 . 69 145 236 18 . . 29 61 22 14 . 18 60 90 23 131 94 1506 Absorbed by Shields 11409 | . . . . 8 72 56 . . . 558 85 . 10 208 835 669 248 . 698 10 328 701 2175 2583 2165 Reduced by Siege Mode 1972 | . . . . . . . . . . . . . . . 36 63 . . 55 14 52 57 233 260 1202 Ignored by Resistances 1386 | . . . . . . . . . . . . . . . . . . . . . 128 417 14 52 775 Regen/Repaired (Parts) 640 | . . . . . 51 . . . . . . . 7 . 79 219 . . . . . 284 . . . Core Remaining (%) 83 | 100 87 . 82 86 . . . . 60 . . . . 71 . . . . 90 . 88 . 89 . . Volleys Fired 957 | 8 20 23 10 55 32 5 4 182 68 114 10 1 . 14 49 51 6 18 34 5 44 29 58 71 46 Largest 4 | 2 2 2 2 3 3 3 1 3 4 4 4 1 . 4 4 4 3 3 4 4 4 4 4 4 4 Hottest 381 | 70 100 122 122 183 150 175 90 120 240 245 308 90 . 187 270 326 251 251 339 339 369 307 381 379 379 Shots Fired 2189 | 16 37 45 20 114 66 7 4 205 163 276 16 1 . 54 173 109 20 42 80 20 123 95 156 200 147 Gun 1404 | 16 34 44 20 106 54 3 . 42 131 171 2 . . 54 173 85 20 42 79 20 94 76 76 55 7 Cannon 691 | . . . . . 12 . 4 163 14 91 6 1 . . . . . . . . 29 15 75 142 139 Launcher 58 | . . . . . . 4 . . 18 14 8 . . . . . . . 1 . . 4 5 3 1 Special 36 | . 3 1 . 8 . . . . . . . . . . . 24 . . . . . . . . . Kinetic 488 | 8 17 . . 4 12 . . 31 . 180 2 . . 28 64 . . . 1 . 20 2 2 14 103 Thermal 1404 | 8 20 45 20 104 20 1 4 159 91 6 6 1 . 14 108 85 20 42 62 20 103 89 149 183 44 Explosive 33 | . . . . . . 4 . . 18 . 8 . . . . . . . . . . . . 3 . Electromagnetic 132 | . . . . 6 34 2 . . . 90 . . . . . . . . . . . . . . . Entropic 39 | . . . . . . . . . . . . . . 12 1 . . . 17 . . 4 5 . . Phasic 69 | . . . . . . . . 15 54 . . . . . . . . . . . . . . . . Robot Hit Streak 35 | 7 11 10 18 23 17 5 . 7 12 15 11 . . 7 21 23 5 8 27 12 21 23 22 29 35 Robot Miss Streak 6 | 2 4 3 1 4 4 2 . 3 4 6 1 . . 2 2 1 2 4 1 3 2 2 2 2 2 Penetration Max 1 | . . . . . . . . . . 1 . . . 1 1 . . . . . 1 . . . . Secondary Targets 20 | . . 1 1 . . . . . 1 2 . . . . 7 3 . . 1 . 2 2 . . . Max Gunslinging Chain 2 | . . 1 1 . . . . . 1 1 . . . . 2 1 . . 1 . 2 1 . . . Shots Hit Robots 1356 | 10 20 27 18 83 40 5 . 25 95 158 14 . . 33 115 90 15 27 53 12 79 75 116 126 120 Core Hits 665 | 6 8 12 7 29 25 11 . 16 54 79 14 . . 17 64 34 2 12 19 5 23 44 65 63 56 Critical Kills 15 | . . . . . . . . . . . . . . 1 4 1 . . . . 1 2 2 3 1 Critical Parts Destroyed 18 | 1 . . . . . . . . . 4 . . . 1 3 . . . . . 2 3 4 . . Critical Strikes 91 | 1 . 1 2 2 1 . . 3 5 10 . . . 3 15 3 1 4 4 2 6 8 9 7 4 Burn 40 | . . 1 2 2 . . . . . . . . . . 8 2 1 4 4 2 3 3 3 3 2 Meltdown 5 | . . . . . . . . . . . . . . . . . . . . . . . 1 3 1 Destroy 31 | 1 . . . . . . . . . 6 . . . 3 7 1 . . . . 3 5 5 . . Blast 8 | . . . . . . . . 2 . 4 . . . . . . . . . . . . . 1 1 Sever 1 | . . . . . 1 . . . . . . . . . . . . . . . . . . . . Intensify 6 | . . . . . . . . 1 5 . . . . . . . . . . . . . . . . Melee Attacks 29 | . . . . . 6 . . . . 15 . . . . 8 . . . . . . . . . . Impact 12 | . . . . . . . . . . 12 . . . . . . . . . . . . . . . Slashing 6 | . . . . . 6 . . . . . . . . . . . . . . . . . . . . Piercing 11 | . . . . . . . . . . 3 . . . . 8 . . . . . . . . . . Sneak Attacks 2 | . . . . . . . . . . 1 . . . . 1 . . . . . . . . . . Combat Hostiles . | . . . . . . . . . . . . . . . . . . . . . . . . . . Follow-up Attacks . | . . . . . . . . . . . . . . . . . . . . . . . . . . Damage Inflicted 57405 | 131 272 463 304 1426 797 525 . 905 4643 5386 909 . . 732 3438 1895 357 736 1685 369 2739 4200 6161 6013 13319 Guns 24197 | 131 272 463 304 1426 768 42 . 308 2233 2557 24 . . 732 2947 1895 357 736 1488 320 2275 1690 1849 1194 186 Cannons 14203 | . . . . . . . . 597 243 1304 170 . . . . . . . . . 433 387 1761 3896 5412 Explosions 18398 | . . . . . . 483 . . 2167 1100 715 . . . 426 . . . 192 . . 2123 2551 923 7718 Melee 519 | . . . . . 29 . . . . 425 . . . . 65 . . . . . . . . . . Ramming 88 | . . . . . . . . . . . . . . . . . . . 5 49 31 . . . 3 Kinetic 10376 | 56 134 . . 32 106 . . 597 . 2920 71 . . 121 664 . . . . . 495 29 33 550 4568 Thermal 33865 | 75 138 463 304 1325 246 25 . 110 1651 633 123 . . 276 2709 1895 357 736 1353 320 2213 2048 3577 4540 8748 Explosive 4288 | . . . . . . 483 . . 2167 . 715 . . . . . . . . . . . . 923 . Electromagnetic 2083 | . . . . 69 416 17 . . . 1408 . . . . . . . . 173 . . . . . . Impact 425 | . . . . . . . . . . 425 . . . . . . . . . . . . . . . Slashing 29 | . . . . . 29 . . . . . . . . . . . . . . . . . . . . Piercing 65 | . . . . . . . . . . . . . . . 65 . . . . . . . . . . Entropic 5163 | . . . . . . . . . . . . . . 335 . . . . 154 . . 2123 2551 . . Phasic 1023 | . . . . . . . . 198 825 . . . . . . . . . . . . . . . . Highest Corruption 31 | . . . . . 2 2 . . . 15 16 16 16 . 23 23 16 16 25 . 11 . 5 12 31 Average Corruption 9 | . . . . . 1 1 . . . 6 15 16 16 . 8 18 16 10 4 . 6 . 3 6 13 Corruption Purged 25 | . . . . . . 2 . . . . . . . . . 7 . 16 . . . . . . . Corruption Blocked . | . . . . . . . . . . . . . . . . . . . . . . . . . . Effects 446 | . . . . . 14 1 . . . 47 26 16 1 . 85 92 29 15 5 . 24 . 19 32 40 Message Errors 107 | . . . . . 1 . . . . 13 7 3 . . 17 23 11 5 4 . 4 . 4 7 8 Matter Fused 95 | . . . . . 3 . . . . 10 6 6 1 . 16 19 6 4 1 . 5 . 5 4 9 Heat Flow Errors 54 | . . . . . 3 . . . . 6 3 2 . . 14 8 3 1 . . 4 . 4 3 3 Energy Discharges 66 | . . . . . 4 1 . . . 5 5 3 . . 9 13 4 3 . . 5 . . 6 8 Parts Rejected 6 | . . . . . . . . . . 1 . . . . 2 . . . . . . . . 1 2 Parts Fused 3 | . . . . . . . . . . . . . . . 1 1 . . . . . . . 1 . Data Loss (minor) 47 | . . . . . . . . . . 4 4 1 . . 13 12 2 1 . . 1 . 4 3 2 Data Loss (major) 23 | . . . . . 1 . . . . 3 1 . . . 4 8 1 . . . 5 . . . . Misfires 15 | . . . . . 1 . . . . 1 . . . . 3 4 2 . . . . . . 4 . Alerts 10 | . . . . . 1 . . . . 2 . 1 . . 2 1 . . . . . . 1 1 1 Misdirections 1 | . . . . . . . . . . . . . . . 1 . . . . . . . . . . Weapon Failures 19 | . . . . . . . . . . 2 . . . . 3 3 . 1 . . . . 1 2 7 Overload Shots 10 | . . . . . 1 . 3 . 2 . . . . . . 1 . . 1 . . . 2 . . Overflow Damage 1755 | . . . . . . 10 . 1 111 436 . . . . 64 . . . 20 19 65 64 156 135 674 Projectiles 254 | . . . . . . . . 1 6 9 . . . . . . . . . . 65 . 4 135 34 Explosions 1323 | . . . . . . 10 . . 105 268 . . . . 64 . . . 20 . . 64 152 . 640 Melee 178 | . . . . . . . . . . 159 . . . . . . . . . 19 . . . . . Knockbacks 31 | . . . . . . . . 3 . 14 . . . . . . . . . . . 1 4 . 9 Impact 2 | . . . . . . . . . . 2 . . . . . . . . . . . . . . . Kinetic 28 | . . . . . . . . 3 . 11 . . . . . . . . . . . 1 4 . 9 Secondary 1 | . . . . . . . . . . 1 . . . . . . . . . . . . . . . Self-Inflicted Damage 1559 | . . . . . . 98 . . 38 254 . . . . . . . . 196 . . 163 144 99 567 Shots 22 | . . . . . . 4 . . 3 7 . . . . . . . . 2 . . 1 1 3 1 Rammed 4 | . . . . . . . . . . . . . . . . . . . 1 2 1 . . . . Targets Rammed 5 | . . . . . . . . . . . . . . . . . . . 1 2 1 . . . 1 Kicked . | . . . . . . . . . . . . . . . . . . . . . . . . . . Crushed 1 | . . . . . . . . . . . . . . . . . . . . . . . . . 1 Highest Temperature 408 | 27 54 153 51 362 263 226 58 330 327 346 240 197 . 14 381 336 160 192 288 202 186 . 408 184 197 Average Temperature 92 | 11 19 47 21 96 68 94 33 146 121 96 105 105 . 6 94 110 71 51 116 100 72 . 111 94 85 Received Heat Transfer 2640 | . 60 135 18 303 109 132 . 225 369 233 6 . 12 120 33 148 12 . 198 24 93 117 16 12 265 Effects 16 | . . . . 1 . 1 . . . 9 . . . . 1 1 . . . . . . 3 . . Shutdowns 1 | . . . . . . . . . . . . . . . . . . . . . . . 1 . . Energy Bleed 2 | . . . . . . 1 . . . . . . . . . . . . . . . . 1 . . Interference 10 | . . . . . . . . . . 9 . . . . 1 . . . . . . . . . . Short Circuit 2 | . . . . 1 . . . . . . . . . . . 1 . . . . . . . . . Damage (minor) 1 | . . . . . . . . . . . . . . . . . . . . . . . 1 . . Siege Activations 46 | . . . . . . . . . . . . . . . 10 5 . . 2 3 4 2 9 8 3 Total Turns 942 | . . . . . . . . . . . . . . . 181 76 . . 42 25 81 109 159 149 120 Longest Duration 92 | . . . . . . . . . . . . . . . 45 57 . . 36 12 32 89 34 47 92 Martial Activations . | . . . . . . . . . . . . . . . . . . . . . . . . . . Shielding Activations . | . . . . . . . . . . . . . . . . . . . . . . . . . . Robots Disrupted 7 | . . . . . . . . . . 7 . . . . . . . . . . . . . . . Combat Hostiles 3 | . . . . . . . . . . 3 . . . . . . . . . . . . . . . Robots Corrupted 11 | . . . . . . . . . . 9 . . . . . . . . 1 1 . . . . . Combat Hostiles 7 | . . . . . . . . . . 6 . . . . . . . . 1 . . . . . . Parts Fried 27 | . . . . . 1 . . . . 22 . . . . . . . . 2 2 . . . . . Impact Corruptions 6 | . . . . . . . . . . 4 . . . . . . . . . 2 . . . . . Robots Melted 16 | . . . . 1 . . . . 1 . . . . . 2 2 . . 1 1 1 . 3 3 1 Combat Hostiles 16 | . . . . 1 . . . . 1 . . . . . 2 2 . . 1 1 1 . 3 3 1 Parts Melted 122 | . . 5 2 13 . . . . 1 1 . . . 1 21 8 . 4 2 2 6 12 13 30 1 Heat Transferred 38187 | 222 407 1073 814 3219 195 20 . 148 2098 474 161 . . 407 4411 3099 759 1575 1874 707 3037 3183 4392 4474 1438 Parts Sabotaged . | . . . . . . . . . . . . . . . . . . . . . . . . . . Parts Stolen . | . . . . . . . . . . . . . . . . . . . . . . . . . . Parts Stripped . | . . . . . . . . . . . . . . . . . . . . . . . . . . Power Chain Reactions 1 | . . . . . . . . . . 1 . . . . . . . . . . . . . . . Alert | -11 -10 -9 -9 -8 -7 -7 -6 -6 -5 -5 -5 -5 -5 -4 -4 -4 -4 -4 -4 -3 -3 -2 -2 -1 -1 ------- Run | Yrd Mat Mat Min Mat Fac Low Zio Dee Pro Fac Upp Upp War Pro Fac Ext Cet Arc Hub Res Tes Res Qua Acc Com Maximum Alert Level 5 | . . . . . . . . . . 2 . . . . 2 2 1 1 3 2 . 2 3 3 5 Low Security (%) 57 | 100 100 100 100 100 100 . . . . 54 . . . . 67 48 35 94 19 . 100 93 . 10 . Level 1 26 | . . . . . . . . . . 23 . . . . 25 51 64 5 17 54 . 1 6 80 57 Level 2 12 | . . . . . . . . . . 22 . . . . 7 . . . 33 45 . 5 74 7 13 Level 3 2 | . . . . . . . . . . . . . . . . . . . 29 . . . 19 1 . Level 4 . | . . . . . . . . . . . . . . . . . . . . . . . . . . Level 5 1 | . . . . . . . . . . . . . . . . . . . . . . . . . 29 High Security . | . . . . . . . . . . . . . . . . . . . . . . . . . . Max Security . | . . . . . . . . . . . . . . . . . . . . . . . . . . Peak Influence 2046 | 10 110 103 140 86 76 . . . . 513 . . . . 484 409 341 214 1010 525 122 454 884 716 2046 Initial 525 | . . 22 25 46 7 . . . . 177 . . . . . 184 141 76 4 525 122 21 248 283 455 Average 219 | 2 49 45 87 26 11 . . . . 214 . . . . 150 207 226 112 471 377 56 91 585 311 763 Influence Increases 12729 | 25 143 244 155 325 244 90 . . 811 1284 120 . . 50 957 873 390 243 1702 55 416 739 932 961 1970 Destroy 0b10 Robot/C 5560 | . 120 200 100 200 100 80 . . 640 580 100 . . 40 620 400 160 80 360 40 180 440 420 540 160 Destroy 0b10 Robot/NC 350 | 25 . . 5 15 25 . . . 5 85 . . . . 40 35 10 15 15 5 15 . 15 25 15 Destroy Leader 1110 | . 20 40 20 82 34 10 . . 40 150 20 . . 10 134 42 . . 104 10 34 50 120 150 40 Allied During Kill 855 | . . . . . . . . . 6 . . . . . . 241 170 95 343 . . . . . . Trap Triggered on 0b10 10 | . . . . . . . . . . 10 . . . . . . . . . . . . . . . Successful Hack 76 | . . . . 5 30 . . . . 3 . . . . 11 20 . . . . 2 . 5 . . Disable Machine 855 | . . . . . 30 . . . . 210 . . . . 45 . . 45 270 . 120 . 75 30 30 Anti-Garrison Action 150 | . . . . . . . . . . . . . . . . . . . 150 . . . . . . Destroy Structure 3178 | . 3 4 . 8 10 . . . . 216 . . . . 32 30 50 8 400 . 20 189 297 201 1710 Partial Spotted 15 | . . . . . . . . . . . . . . . . . . . 15 . . . . . . Lose Combat Pursuer 570 | . . . 30 15 15 . . . 120 30 . . . . 75 105 . . 45 . 45 60 . 15 15 Influence Decreases 10950 | 25 90 231 101 427 262 90 . . 528 1055 478 154 . 50 581 996 452 421 713 839 596 335 902 721 903 Entered New Map 2141 | . . 31 41 74 11 . . . . 106 190 30 . . . 192 112 115 9 477 96 17 194 189 257 Time Decay 6835 | 25 90 190 60 313 251 80 . . 408 699 278 120 . 50 421 604 270 246 274 362 490 318 398 502 386 Lost Part 580 | . . 10 . 40 . 10 . . 80 100 10 . . . . 10 . . 20 . . . 10 30 260 Lost Ally 494 | . . . . . . . . . 40 . . 4 . . 10 40 70 60 260 . 10 . . . . Purge Threat 900 | . . . . . . . . . . 150 . . . . 150 150 . . 150 . . . 300 . . Squads Dispatched 66 | . 1 2 . 2 2 . . . 1 10 . . . . 7 . . . 10 8 4 2 2 8 7 Investigation 7 | . . 1 . 1 . . . . . . . . . . 1 . . . . 3 1 . . . . Extermination 22 | . . . . . 2 . . . . 6 . . . . 6 . . . 1 . 2 . . 3 2 Reinforcement 29 | . 1 1 . 1 . . . . . 4 . . . . . . . . 6 5 1 2 2 2 4 Assault 6 | . . . . . . . . . 1 . . . . . . . . . 3 . . . . 1 1 Garrison 2 | . . . . . . . . . . . . . . . . . . . . . . . . 2 . Intercept . | . . . . . . . . . . . . . . . . . . . . . . . . . . Searches Triggered . | . . . . . . . . . . . . . . . . . . . . . . . . . . Construction Impeded 3 | . . . . . . . . . . 2 . . . . . . . . . . . . . 1 . Haulers Reinforced 4 | . . . . . . . . . . 1 . . . . . . . . 1 . . 1 . 1 . Active Scanning Responses . | . . . . . . . . . . . . . . . . . . . . . . . . . . Cargo Convoy Interrupts . | . . . . . . . . . . . . . . . . . . . . . . . . . . Stealth | -11 -10 -9 -9 -8 -7 -7 -6 -6 -5 -5 -5 -5 -5 -4 -4 -4 -4 -4 -4 -3 -3 -2 -2 -1 -1 --------- Run | Yrd Mat Mat Min Mat Fac Low Zio Dee Pro Fac Upp Upp War Pro Fac Ext Cet Arc Hub Res Tes Res Qua Acc Com Distress Signals 43 | . . . . . . . . . 1 1 1 . 1 . 6 3 2 . 4 6 2 7 4 3 2 Communications Jammed . | . . . . . . . . . . . . . . . . . . . . . . . . . . Distress Signals . | . . . . . . . . . . . . . . . . . . . . . . . . . . Times Spotted 477 | . 11 12 7 21 9 4 . 17 33 42 5 . 1 8 50 24 10 19 29 12 16 29 25 35 58 Peak Tracking Total 34 | . 4 6 2 4 2 4 . 5 10 4 4 . 1 6 6 7 5 2 7 5 4 12 9 6 34 Tactical Retreats 24 | . . . 1 1 1 . . . 6 1 . . . . 2 3 . . 2 . 1 4 . 1 1 Traps | -11 -10 -9 -9 -8 -7 -7 -6 -6 -5 -5 -5 -5 -5 -4 -4 -4 -4 -4 -4 -3 -3 -2 -2 -1 -1 ------- Run | Yrd Mat Mat Min Mat Fac Low Zio Dee Pro Fac Upp Upp War Pro Fac Ext Cet Arc Hub Res Tes Res Qua Acc Com Traps Triggered 17 | . . 1 . 2 3 . . . . 3 . . . . 7 . . . . . . . 1 . . Indirectly 1 | . . . . . . . . . . 1 . . . . . . . . . . . . . . . Trap Hack Attempts . | . . . . . . . . . . . . . . . . . . . . . . . . . . Triggered . | . . . . . . . . . . . . . . . . . . . . . . . . . . Disarmed . | . . . . . . . . . . . . . . . . . . . . . . . . . . Reprogrammed . | . . . . . . . . . . . . . . . . . . . . . . . . . . Reused 1 | . . . . . . . . . . 1 . . . . . . . . . . . . . . . Traps Extracted . | . . . . . . . . . . . . . . . . . . . . . . . . . . Installed 1 | . . . . . . . . . . 1 . . . . . . . . . . . . . . . Triggered 1 | . . . . . . . . . . 1 . . . . . . . . . . . . . . . Most Traps Carried 4 | . . . . . . . . . 4 4 . . . . . . . . . . . . . . . Time Bombs Activated 1 | . . . . . . . . . . . . . . 1 . . . . . . . . . . . Exploded 1 | . . . . . . . . . . . . . . 1 . . . . . . . . . . . Machines | -11 -10 -9 -9 -8 -7 -7 -6 -6 -5 -5 -5 -5 -5 -4 -4 -4 -4 -4 -4 -3 -3 -2 -2 -1 -1 ---------- Run | Yrd Mat Mat Min Mat Fac Low Zio Dee Pro Fac Upp Upp War Pro Fac Ext Cet Arc Hub Res Tes Res Qua Acc Com Machines Disabled 68 | . . . . . 2 . 3 1 . 14 . . 1 . 3 2 1 3 19 . 9 . 6 2 2 Max in Single Turn 11 | . . . . . 1 . 1 . . 1 . . 1 . 2 . . 1 11 . 1 . 1 1 2 Garrison Access 5 | . . . . . . . . . . 2 . . . . . . . . 1 . . 1 . 1 . Network Hub 2 | . . . . . . . . . . . . . . . . . . . 2 . . . . . . Machines Repaired . | . . . . . . . . . . . . . . . . . . . . . . . . . . Machines Dismantled 1 | . . . . . . . . . . . . . 1 . . . . . . . . . . . . Machines Sabotaged . | . . . . . . . . . . . . . . . . . . . . . . . . . . Overloaded Fab Kills . | . . . . . . . . . . . . . . . . . . . . . . . . . . Hacking | -11 -10 -9 -9 -8 -7 -7 -6 -6 -5 -5 -5 -5 -5 -4 -4 -4 -4 -4 -4 -3 -3 -2 -2 -1 -1 --------- Run | Yrd Mat Mat Min Mat Fac Low Zio Dee Pro Fac Upp Upp War Pro Fac Ext Cet Arc Hub Res Tes Res Qua Acc Com Machines Accessed 51 | . 2 3 . 3 7 1 . . . 7 . 1 7 . 7 1 3 . 1 . 2 . 3 3 . Terminals 14 | . 2 2 . 2 4 . . . . . . . . . . . 3 . . . 1 . . . . Fabricators 3 | . . . . . . . . . . 1 . . . . 1 . . . . . . . . 1 . Repair Stations 8 | . . 1 . . 2 . . . . 1 . . . . 2 1 . . . . . . 1 . . Recycling Units 3 | . . . . 1 . . . . . 2 . . . . . . . . . . . . . . . Scanalyzers 7 | . . . . . . . . . . 1 . . . . 3 . . . . . 1 . 2 . . Garrison Access 7 | . . . . . 1 . . . . 2 . . . . 1 . . . 1 . . . . 2 . Total Hacks 102 | . 2 7 . 3 16 1 . . . 11 . 1 10 . 16 2 8 . 1 . 9 . 10 5 . Successful 55 | . 2 1 . 2 5 1 . . . 8 . 1 10 . 8 2 1 . . . 6 . 5 3 . Failed 47 | . . 6 . 1 11 . . . . 3 . . . . 8 . 7 . 1 . 3 . 5 2 . Catastrophic 12 | . . 2 . 1 3 . . . . . . . . . 2 . 2 . . . . . 2 . . Database Lockouts . | . . . . . . . . . . . . . . . . . . . . . . . . . . Manual 8 | . . . . . 4 . 1 . . . . . . . . . 1 . . . 2 . . . . Terminals 31 | . 2 4 . 2 11 . . . . . . . . . . . 8 . . . 4 . . . . Fabricators 5 | . . . . . . . . . . 2 . . . . 1 . . . . . . . . 2 . Repair Stations 17 | . . 3 . . 4 . . . . 1 . . . . 6 2 . . . . . . 1 . . Recycling Units 5 | . . . . 1 . . . . . 4 . . . . . . . . . . . . . . . Scanalyzers 24 | . . . . . . . . . . 2 . . . . 8 . . . . . 5 . 9 . . Garrison Access 8 | . . . . . 1 . . . . 2 . . . . 1 . . . 1 . . . . 3 . Terminal Hacks 20 | . 2 . . 1 2 1 . . . . . 1 10 . . . 1 . . . 2 . . . . Record 10 | . . . . . . . . . . . . . 8 . . . 1 . . . 1 . . . . Prototype ID Bank 1 | . . . . 1 . . . . . . . . . . . . . . . . . . . . . Open Door 4 | . . . . . . 1 . . . . . 1 2 . . . . . . . . . . . . Alert Level 1 | . 1 . . . . . . . . . . . . . . . . . . . . . . . . Locate Traps 2 | . . . . . 1 . . . . . . . . . . . . . . . 1 . . . . Maintenance Status 1 | . 1 . . . . . . . . . . . . . . . . . . . . . . . . Zone Layout 1 | . . . . . 1 . . . . . . . . . . . . . . . . . . . . Fabricator Hacks 5 | . . . . . . . . . . 2 . . . . 1 . . . . . . . . 2 . Network Status 1 | . . . . . . . . . . . . . . . 1 . . . . . . . . . . Load Schematic 2 | . . . . . . . . . . 1 . . . . . . . . . . . . . 1 . Build 2 | . . . . . . . . . . 1 . . . . . . . . . . . . . 1 . Repair Station Hacks 8 | . . 1 . . 2 . . . . . . . . . 3 2 . . . . . . . . . Scan Component 5 | . . 1 . . 1 . . . . . . . . . 2 1 . . . . . . . . . Repair 3 | . . . . . 1 . . . . . . . . . 1 1 . . . . . . . . . Recycling Unit Hacks 3 | . . . . 1 . . . . . 2 . . . . . . . . . . . . . . . Retrieve Components 3 | . . . . 1 . . . . . 2 . . . . . . . . . . . . . . . Scanalyzer 13 | . . . . . . . . . . 2 . . . . 4 . . . . . 2 . 5 . . Insert Component 7 | . . . . . . . . . . 1 . . . . 2 . . . . . 1 . 3 . . Analyze 6 | . . . . . . . . . . 1 . . . . 2 . . . . . 1 . 2 . . Garrison Access Hacks 3 | . . . . . . . . . . 2 . . . . . . . . . . . . . 1 . Seal Access 3 | . . . . . . . . . . 2 . . . . . . . . . . . . . 1 . Unauthorized Hacks 3 | . . . . . 1 . . . . . . . . . . . . . . . 2 . . . . Terminals 3 | . . . . . 1 . . . . . . . . . . . . . . . 2 . . . . Botnet 2 | . . . . . 1 . . . . . . . . . . . . . . . 1 . . . . Operators 1 | . . . . . . . . . . . . . . . . . . . . . 1 . . . . Fabricators . | . . . . . . . . . . . . . . . . . . . . . . . . . . Repair Stations . | . . . . . . . . . . . . . . . . . . . . . . . . . . Recycling Units . | . . . . . . . . . . . . . . . . . . . . . . . . . . Scanalyzers . | . . . . . . . . . . . . . . . . . . . . . . . . . . Garrison Access . | . . . . . . . . . . . . . . . . . . . . . . . . . . Data Cores Recovered . | . . . . . . . . . . . . . . . . . . . . . . . . . . Used . | . . . . . . . . . . . . . . . . . . . . . . . . . . Hacking Detections 28 | . . 3 . 1 7 . . . . 2 . . . . 5 1 3 . 1 . 2 . 2 1 . Full Trace Events 2 | . . . . . . . . . . . . . . . 1 . . . . . 1 . . . . Feedback Events . | . . . . . . . . . . . . . . . . . . . . . . . . . . Feedback Blocked . | . . . . . . . . . . . . . . . . . . . . . . . . . . Robot Schematics Acquired 4 | . . . . . . . 4 . . . . . . . . . . . . . . . . . . Robots Built . | . . . . . . . . . . . . . . . . . . . . . . . . . . Authchips . | . . . . . . . . . . . . . . . . . . . . . . . . . . Time . | . . . . . . . . . . . . . . . . . . . . . . . . . . Total Robot Build Rating . | . . . . . . . . . . . . . . . . . . . . . . . . . . Part Schematics Acquired 16 | . . . . . . . 14 . . 1 . . . . . . . . . . . . 1 . . Parts Built 2 | . . . . . . . . . . 2 . . . . . . . . . . . . . . . Authchips 2 | . . . . . . . . . . 1 . . . . . . . . . . . . . 1 . Time 185 | . . . . . . . . . . 117 . . . . . . . . . . . . . 68 . Total Part Build Rating 14 | . . . . . . . . . . 14 . . . . . . . . . . . . . . . Parts Repaired 3 | . . . . . 1 . . . . . . . . . 1 1 . . . . . . . . . Time 89 | . . . . . 26 . . . . . . . . . 32 31 . . . . . . . . . Parts Recycled . | . . . . . . . . . . . . . . . . . . . . . . . . . . Recycled Matter . | . . . . . . . . . . . . . . . . . . . . . . . . . . Retrieved Matter . | . . . . . . . . . . . . . . . . . . . . . . . . . . Retrieved Components 14 | . . . . 2 . . . . . 12 . . . . . . . . . . . . . . . Parts Scanalyzed 5 | . . . . . . . . . . 1 . . . . 1 . . . . . 1 . 2 . . Part Schematics Acquired 2 | . . . . . . . . . . 1 . . . . . . . . . . . . 1 . . Parts Damaged 1 | . . . . . . . . . . 1 . . . . . . . . . . . . . . . Bothacking | -11 -10 -9 -9 -8 -7 -7 -6 -6 -5 -5 -5 -5 -5 -4 -4 -4 -4 -4 -4 -3 -3 -2 -2 -1 -1 ------------ Run | Yrd Mat Mat Min Mat Fac Low Zio Dee Pro Fac Upp Upp War Pro Fac Ext Cet Arc Hub Res Tes Res Qua Acc Com Used RIF Installer . | . . . . . . . . . . . . . . . . . . . . . . . . . . Robots Hacked 2 | . . . . . . . . . . . . . . . . 2 . . . . . . . . . Non-combat . | . . . . . . . . . . . . . . . . . . . . . . . . . . Combat . | . . . . . . . . . . . . . . . . . . . . . . . . . . Robot Hacks Applied . | . . . . . . . . . . . . . . . . . . . . . . . . . . Manual 2 | . . . . . . . . . . . . . . . . 2 . . . . . . . . . Relay Couplers Released 7 | . . . . . . . . . . . . . . . . . . . 2 . . 2 . 3 . Machine Destruction 4 | . . . . . . . . . . . . . . . . . . . 2 . . 2 . . . Programmers 3 | . . . . . . . . . . . . . . . . . . . . . . . . 3 . Fabnet Peak Effective % . | . . . . . . . . . . . . . . . . . . . . . . . . . . Robots Rewired 17 | . . . . . . . . . 2 1 . . . . . 14 . . . . . . . . . Allies Hacked 1 | . . . . . . . . . . . . . . . 1 . . . . . . . . . . Hacks Repelled . | . . . . . . . . . . . . . . . . . . . . . . . . . . Allies | -11 -10 -9 -9 -8 -7 -7 -6 -6 -5 -5 -5 -5 -5 -4 -4 -4 -4 -4 -4 -3 -3 -2 -2 -1 -1 -------- Run | Yrd Mat Mat Min Mat Fac Low Zio Dee Pro Fac Upp Upp War Pro Fac Ext Cet Arc Hub Res Tes Res Qua Acc Com Total Allies 37 | . . . . . . . 6 . 2 1 . . . . 1 21 5 . . . 1 . . . . Largest Group 19 | . . . . . . . 6 6 2 1 . . . . 1 18 19 18 15 . 1 . . . . Highest-Rated Group 1189 | . . . . . . . 301 301 78 21 . . . . 10 879 1189 1036 912 . 26 . . . . Highest-Rated Ally 159 | . . . . . . . 96 96 49 21 . . . . 10 159 159 96 96 . 26 . . . . Total Orders 53 | . . . . . . . . . . 9 4 2 . . 9 10 . . 4 3 3 . 4 1 4 STAY 1 | . . . . . . . . . . . . . . . . 1 . . . . . . . . . FOLLOW 1 | . . . . . . . . . . . . . . . . 1 . . . . . . . . . EXPLORE 3 | . . . . . . . . . . . 2 1 . . . . . . . . . . . . . RETURN 48 | . . . . . . . . . . 9 2 1 . . 9 8 . . 4 3 3 . 4 1 4 Ally Attacks 346 | . . . . . . . . 91 10 . . . . . . 51 47 38 109 . . . . . . Total Damage 11583 | . . . . . . . . 2393 239 . . . . . . 1933 2273 1245 3500 . . . . . . Kills 66 | . . . . . . . . 19 2 . . . . . . 14 10 5 16 . . . . . . Allies Corrupted 2 | . . . . . . . . . . . . . . . 1 . . . 1 . . . . . . Allies Melted 5 | . . . . . . . . . 1 . . . 2 . . . . . 1 . . 1 . . . Intel | -11 -10 -9 -9 -8 -7 -7 -6 -6 -5 -5 -5 -5 -5 -4 -4 -4 -4 -4 -4 -3 -3 -2 -2 -1 -1 ------- Run | Yrd Mat Mat Min Mat Fac Low Zio Dee Pro Fac Upp Upp War Pro Fac Ext Cet Arc Hub Res Tes Res Qua Acc Com Active Infowar (turns) 21211 | 19 211 421 139 611 1609 534 1116 72 1622 2966 612 489 1078 590 2854 1198 13 . 592 424 1170 679 779 1148 265 Optics 7939 | . . . . . . . . . . 2892 612 489 1078 590 2278 . . . . . . . . . . Sensors 3076 | . . . . . . . . . . . 569 489 1067 590 361 . . . . . . . . . . Terrain 3526 | . . . . . . . . . . . . . . . . 2 . . . 391 1102 667 501 861 2 Seismic 16803 | 19 211 421 139 611 1391 534 1116 72 1622 2440 . . . . 2136 1196 13 . 592 305 1159 671 751 1139 265 Machine Analysis 1143 | . . . . . 1143 . . . . . . . . . . . . . . . . . . . . Jamming 1292 | . . . . . . . . . . . . 232 1060 . . . . . . . . . . . . Robot Analysis Total . | . . . . . . . . . . . . . . . . . . . . . . . . . . Derelict Logs Recovered 8 | . . . 1 . . . 2 . 2 . 1 1 . 1 . . . . . . . . . . . Drone Launches 48 | . . . . . . . . . . 9 2 1 . . 9 8 . . 4 3 3 . 4 1 4 Drone Recoveries 47 | . . . . . . . . . . 9 2 . . . 9 8 . . 4 3 3 . 4 1 4 Exploration | -11 -10 -9 -9 -8 -7 -7 -6 -6 -5 -5 -5 -5 -5 -4 -4 -4 -4 -4 -4 -3 -3 -2 -2 -1 -1 ------------- Run | Yrd Mat Mat Min Mat Fac Low Zio Dee Pro Fac Upp Upp War Pro Fac Ext Cet Arc Hub Res Tes Res Qua Acc Com Turns Passed 28166 | 118 271 421 139 918 1621 656 1146 2423 1740 2966 612 489 1078 590 2973 1954 599 538 706 833 1280 825 948 1340 982 Spaces Moved 14899 | 63 143 235 89 576 868 434 812 1103 753 1813 496 285 906 423 1601 899 263 166 315 442 543 420 369 464 418 Core 14 | 4 . . . . . . . . . . . . . . . . . . . . . . . . 10 Treads 7475 | . 56 115 . . 388 . 1 1103 616 . . . . . 907 899 263 166 315 442 543 420 369 464 408 Legs 146 | 59 87 . . . . . . . . . . . . . . . . . . . . . . . . Wheels 7264 | . . 120 89 576 480 434 811 . 137 1813 496 285 906 423 694 . . . . . . . . . . Hover . | . . . . . . . . . . . . . . . . . . . . . . . . . . Flight . | . . . . . . . . . . . . . . . . . . . . . . . . . . Fastest Speed 50 | 50 120 100 115 105 105 145 125 160 108 107 107 107 107 107 102 160 160 160 160 152 155 155 155 160 50 Average Speed 141 | 115 135 135 115 105 147 145 131 160 154 119 110 115 111 123 143 160 160 160 160 156 155 155 159 197 173 Slowest Speed 263 | 120 160 160 115 105 240 145 160 160 240 180 124 124 124 124 160 160 160 160 160 160 155 155 160 249 263 Overloaded Moves . | . . . . . . . . . . . . . . . . . . . . . . . . . . Propulsion Burnouts . | . . . . . . . . . . . . . . . . . . . . . . . . . . Robots Hopped . | . . . . . . . . . . . . . . . . . . . . . . . . . . Potential Cave-ins 3 | . . . . . . . . . . . . . . . . . . . . . 1 . 2 . . Cave-ins Triggered . | . . . . . . . . . . . . . . . . . . . . . . . . . . Exploration Rate (%) 50 | 4 29 23 19 42 21 45 84 84 67 45 75 63 94 79 39 98 69 88 38 15 72 24 51 19 19 Regions Visited 25 Branch Regions 16 Pre-discovered Areas 1 | . . . . . . . . . . . . . . 1 . . . . . . . . . . . Known Exits Taken 12 | . . . 1 . 1 . . . 1 1 . . . 1 1 1 . . 1 1 1 . 1 1 . Unknown Exits Taken 13 | 1 1 1 . 1 . 1 1 1 . . 1 1 1 . . . 1 1 . . . 1 . . . Scrap Searched 13 | . . . . . . . 3 . 2 . 3 2 . 3 . . . . . . . . . . . Spaces Dug 217 | . 3 1 . 7 12 . . 87 10 26 . 1 . . 7 1 . . 12 . 6 1 13 25 5 Terrain Destroyed 1947 | . 3 1 . 7 12 48 . 101 166 128 38 1 . 6 14 6 . . 329 . 12 55 125 78 817 Melee 14 | . . . . . 4 . . . . 3 . . . . 7 . . . . . . . . . . Projectile 353 | . 3 1 . 7 8 . . 101 54 63 2 1 . 5 7 6 . . 10 . 12 3 19 40 11 AOE 1577 | . . . . . . 48 . . 112 62 36 . . . . . . . 319 . . 51 105 38 806 Terrain Rammed . | . . . . . . . . . . . . . . . . . . . . . . . . . . Walls Destroyed . | . . . . . . . . . . . . . . . . . . . . . . . . . . Machines Disabled . | . . . . . . . . . . . . . . . . . . . . . . . . . . Actions | -11 -10 -9 -9 -8 -7 -7 -6 -6 -5 -5 -5 -5 -5 -4 -4 -4 -4 -4 -4 -3 -3 -2 -2 -1 -1 --------- Run | Yrd Mat Mat Min Mat Fac Low Zio Dee Pro Fac Upp Upp War Pro Fac Ext Cet Arc Hub Res Tes Res Qua Acc Com Total 20030 | 88 176 290 105 763 1142 452 882 1554 1204 2356 545 443 971 456 2110 1349 430 403 452 565 884 525 595 726 564 Wait 2659 | 4 6 12 5 91 141 3 31 201 305 211 21 152 2 13 305 220 139 210 80 63 204 24 54 110 52 Move 14874 | 62 142 234 88 575 867 433 811 1102 752 1812 495 284 905 422 1600 898 262 165 314 441 542 419 368 463 418 Hop . | . . . . . . . . . . . . . . . . . . . . . . . . . . Pick Up 211 | 7 1 8 1 14 21 1 7 9 10 33 5 . 12 . 9 11 5 . . 8 14 4 16 9 6 Fast Attach 128 | 7 1 . . 1 13 . 5 3 2 21 . 3 10 . 21 4 2 6 . 9 3 5 4 4 4 Attach 120 | . 1 3 . 7 5 3 3 2 13 13 2 . 1 1 5 5 3 . 3 5 7 9 7 10 12 Detach 67 | . . . . . 5 1 3 1 4 7 . . 2 . 8 3 1 1 1 5 7 6 5 4 3 Swap 532 | . 3 6 1 15 29 6 9 39 8 50 7 . 7 4 82 29 4 . 17 15 47 21 66 51 16 Drop 242 | . 2 4 . 5 23 . 9 15 4 38 5 3 23 1 23 13 8 3 1 12 15 8 17 4 6 Fire 957 | 8 20 23 10 55 32 5 4 182 68 114 10 1 . 14 49 51 6 18 34 5 44 29 58 71 46 Melee 29 | . . . . . 6 . . . . 15 . . . . 8 . . . . . . . . . . Ram . | . . . . . . . . . . . . . . . . . . . . . . . . . . Kick . | . . . . . . . . . . . . . . . . . . . . . . . . . . Crush 5 | . . . . . . . . . . . . . . . . . . . 1 2 1 . . . 1 Escape Stasis . | . . . . . . . . . . . . . . . . . . . . . . . . . . Rewire 195 | . . . . . . . . . 38 41 . . . . . 115 . . 1 . . . . . . Trap 2 | . . . . . . . . . . 1 . . . 1 . . . . . . . . . . . Miscellaneous 9 | . . . . . . . . . . . . . 9 . . . . . . . . . . . . Route ------- -11/Scrapyard -10/Materials -9/Materials -9/Mines -8/Materials -7/Factory (discovered 3 exits: *Fac x2 / *Low) -7/Lower Caves -6/Zion -6/Deep Caves -5/Proximity Caves -5/Factory (discovered 6 exits: *Fac x4 / *Upp x2) -5/Upper Caves -5/Upper Caves (discovered 2 exits: *Fac / *War) -5/Warlord -4/Proximity Caves -4/Factory (discovered 8 exits: *Res x4 / Upp x2 / *Ext x2) -4/Extension (discovered 3 exits: *Res x2 / *Cet) -4/Cetus (discovered 2 exits: *Res / *Arc) -4/Archives (discovered 3 exits: *Res / *Hub x2) -4/Hub_04(d) (discovered 2 exits: *Res x2) -3/Research (discovered 6 exits: *Res x3 / Arm / *Tes x2) -3/Testing -2/Research (discovered 2 exits: *Acc / *Qua) -2/Quarantine -1/Access -1/Command History --------- Turn | Location | Event 5 | -11/Scrapyard | Discovered new exit (range 15) 119 | -11/Scrapyard | Entered Materials 179 | -10/Materials | Discovered new exit (range 16) 324 | -10/Materials | Build established: Mutant 390 | -10/Materials | Entered another Materials area 390 | -9/Materials | Evolved 2 slots: Propulsion x1, Utility x1 708 | -9/Materials | Discovered new exit (range 16) 811 | -9/Materials | Entered Mines 826 | -9/Mines | Identified exit to Materials 950 | -9/Mines | Entered Materials 950 | -8/Materials | Evolved 2 slots: Propulsion x1, Weapon x1 1752 | -8/Materials | Discovered new exit (range 4) 1868 | -8/Materials | Entered Factory 1868 | -7/Factory | Evolved 2 slots: Utility x1, Weapon x1 2116 | -7/Factory | Discovered new exit (range 15) 2280 | -7/Factory | Build established: Scavenger-Skirmisher 2989 | -7/Factory | Discovered new exit (range 12) 3082 | -7/Factory | Identified exit to Factory 3136 | -7/Factory | Repaired Lgt. Treads 3162 | -7/Factory | Discovered new exit (range 15) 3196 | -7/Factory | Identified exit to Lower Caves 3353 | -7/Factory | Build established: Tank 3489 | -7/Factory | Entered Lower Caves 3928 | -7/Lower Caves | A Derelict revealed a hidden shortcut to a safe place 4145 | -7/Lower Caves | Entered Zion 4154 | -6/Zion | Given A8's code to call for help 4310 | -6/Zion | Given the Hacking Drone Bay 4310 | -6/Zion | Found Prototype Device 4427 | -6/Zion | Learned Factory terminal intel 4561 | -6/Zion | Found CR-A16's Pointy Stick 4690 | -6/Zion | Found GAL Module 4769 | -6/Zion | Gained Derelict followers 4831 | -6/Zion | Found Prototype Device 4831 | -6/Zion | Identified Phasing AFG 4871 | -6/Zion | Learned Factory fabricator intel 5011 | -6/Zion | Learned 4 Factory zone layouts 5016 | -6/Zion | Found Prototype Device 5016 | -6/Zion | Identified Mobile Refinery Mk. CCLXVII 5094 | -6/Zion | Identified Hacking Drone Bay 5225 | -6/Zion | Enhanced Grunt warped into view, answering call for help 5227 | -6/Zion | Enhanced Grunt warped into view, answering call for help 5249 | -6/Zion | Discovered new exit (range 4) 5249 | -6/Zion | Saw the warning signs outside the Deep Caves entrance 5291 | -6/Zion | Entered Deep Caves 5291 | -6/Deep Caves | Accompanied by 6 allies 5615 | -6/Deep Caves | Build established: Gunner 5627 | -6/Deep Caves | Z-Facility disabled 5643 | -6/Deep Caves | Attacked by Z-Imprinter 5674 | -6/Deep Caves | Allies destroyed Z-Imprinter 5696 | -6/Deep Caves | Found Prototype Protection 5696 | -6/Deep Caves | Identified Zio. Weapon Casing 5701 | -6/Deep Caves | Lost 3 allies 5704 | -6/Deep Caves | Found Prototype Device 5704 | -6/Deep Caves | Identified Zio. Metafield Generator 5892 | -6/Deep Caves | Found Prototype Protection 5892 | -6/Deep Caves | Identified Zio. Heavy Carapace 6170 | -6/Deep Caves | Build established: Scavenger-Tank 6351 | -6/Deep Caves | Discovered new exit (range 6) 7336 | -6/Deep Caves | Found Zio. Heavy Carapace 7464 | -6/Deep Caves | Found Prototype Device 7464 | -6/Deep Caves | Identified Exp. Thermal Shield 7714 | -6/Deep Caves | Entered Proximity Caves 7716 | -5/Proximity Caves | Attracted the attention of an 0b10 checkpoint 7797 | -5/Proximity Caves | Attracted the attention of an 0b10 outpost 7888 | -5/Proximity Caves | Lost 3 parts (1u2w) 8146 | -5/Proximity Caves | Build established: Scavenger-Gunner 8264 | -5/Proximity Caves | Received a Behemoth hack from an annoying Tinkerer 9046 | -5/Proximity Caves | Destroyed 10 combat bots 9197 | -5/Proximity Caves | Learned Factory emergency access door positions 9218 | -5/Proximity Caves | Identified exit to Factory 9316 | -5/Proximity Caves | Lost 3 parts (2n1w) 9454 | -5/Proximity Caves | Entered Factory 9454 | -5/Factory | Evolved 4 slots: Power x1, Utility x3 9457 | -5/Factory | Loaded intel: 26 terminal locations 9458 | -5/Factory | Loaded intel: 6 fabricator locations 9986 | -5/Factory | Build established: Scavenger-Tank 10111 | -5/Factory | Discovered new exit (range 20) 10153 | -5/Factory | Identified exit to Upper Caves 10668 | -5/Factory | Spotted B-75 Beast 11001 | -5/Factory | Discovered new exit (range 8) 11215 | -5/Factory | Identified exit to Factory 11486 | -5/Factory | Found Launcher Loader 11842 | -5/Factory | Fabricated Centrium Wheel? 11875 | -5/Factory | System corruption reached 10% 12064 | -5/Factory | Lost 4 parts (1p1n2u) 12141 | -5/Factory | Discovered exit to Upper Caves (range 11) 12420 | -5/Factory | Entered Upper Caves 12564 | -5/Upper Caves | Build established: Tank 12636 | -5/Upper Caves | Encountered a Warlord checkpoint 12766 | -5/Upper Caves | Lost 3 allies 12782 | -5/Upper Caves | Attracted the attention of an 0b10 checkpoint 12940 | -5/Upper Caves | Learned location of 1 exit from Factory 12947 | -5/Upper Caves | Discovered new exit (range 9) 13032 | -5/Upper Caves | Entered another Upper Caves area 13075 | -5/Upper Caves | Discovered exit to Factory (range 14) 13077 | -5/Upper Caves | Entered a destroyed Warlord outpost 13123 | -5/Upper Caves | Encountered a Warlord checkpoint 13133 | -5/Upper Caves | Learned 4 Factory zone layouts 13460 | -5/Upper Caves | Discovered new exit (range 18) 13521 | -5/Upper Caves | Entered Warlord 13559 | -5/Warlord | System corruption cleaned by Quarantine Array 13603 | -5/Warlord | Discovered new exit (range 15) 13968 | -5/Warlord | Learned Testing emergency access door positions 13969 | -5/Warlord | Learned 4 Research zone layouts 13969 | -5/Warlord | Learned 4 Access zone layouts 13970 | -5/Warlord | Learned Armory security intel 13970 | -5/Warlord | Learned Armory terminal intel 13970 | -5/Warlord | Learned Research repair station intel 14034 | -5/Warlord | Build established: Skirmisher 14124 | -5/Warlord | Warlord's base attacked by MAIN.C 14179 | -5/Warlord | Met Warlord 14279 | -5/Warlord | Found Prototype Reactor 14279 | -5/Warlord | Identified Vortex Chain Reactor 14285 | -5/Warlord | Found Prototype Device 14285 | -5/Warlord | Identified System Purifier 14293 | -5/Warlord | Found Prototype Processor 14293 | -5/Warlord | Identified Exp. Core Analyzer 14363 | -5/Warlord | Found Prototype Energy Gun 14365 | -5/Warlord | Found Prototype Energy Gun 14370 | -5/Warlord | Found Prototype Launcher 14373 | -5/Warlord | Identified Vortex Rifle (x2) 14474 | -5/Warlord | Warlord forces counterattacked 14564 | -5/Warlord | Opened side exit 14599 | -5/Warlord | Entered Proximity Caves 14602 | -4/Proximity Caves | Attacked by a faux Warlord 14618 | -4/Proximity Caves | Lost 11 allies 15065 | -4/Proximity Caves | Learned location of Testing (-3) 15174 | -4/Proximity Caves | Discovered exit to Factory (range 6) 15189 | -4/Proximity Caves | Entered Factory 15189 | -4/Factory | Evolved 2 slots: Propulsion x2 15190 | -4/Factory | Identified exit to Research 15191 | -4/Factory | Identified exit to Extension 15609 | -4/Factory | Build established: Tank 15841 | -4/Factory | Identified Vortex Catalyst Activator 15944 | -4/Factory | Repaired Arm. Wheel 16030 | -4/Factory | Spotted B-86 Titan 17304 | -4/Factory | System corruption reached 10% 17656 | -4/Factory | Identified exit to Upper Caves 18162 | -4/Factory | Entered Extension 18360 | -4/Extension | Identified exit to Cetus 18933 | -4/Extension | Build established: Scavenger-Tank 19150 | -4/Extension | Spotted B-86 Titan 19151 | -4/Extension | Befriended a Behemoth using the annoying Tinkerer's hack 19159 | -4/Extension | Spotted B-86 Titan 19165 | -4/Extension | Befriended a Behemoth using the annoying Tinkerer's hack 19220 | -4/Extension | Rescued A7 19238 | -4/Extension | Build established: Commander-Tank 19430 | -4/Extension | Rescued a captive Derelict 19537 | -4/Extension | Disrupted transfer network 19650 | -4/Extension | Repaired Imp. Heavy Treads 19708 | -4/Extension | Rescued a captive Derelict 19709 | -4/Extension | Rescued a captive Derelict 20116 | -4/Extension | Entered Cetus 20116 | -4/Cetus | Accompanied by 18 allies (A7) 20121 | -4/Cetus | Acquired a Cetus Manufacturing Module code from A7 20137 | -4/Cetus | Spotted Cetus Guard 20137 | -4/Cetus | Spotted Cetus Guard 20139 | -4/Cetus | Spotted Cetus Guard 20139 | -4/Cetus | Spotted Cetus Guard 20142 | -4/Cetus | Allies destroyed Cetus Guard 20155 | -4/Cetus | Allies destroyed Cetus Guard 20155 | -4/Cetus | Allies destroyed Cetus Guard 20164 | -4/Cetus | Allies destroyed Cetus Guard 20191 | -4/Cetus | Lost 3 allies 20258 | -4/Cetus | Started Cetus Manufacturing Module 20283 | -4/Cetus | Manufactured an Enhanced Grunt 20298 | -4/Cetus | Discovered new exit (range 15) 20308 | -4/Cetus | Manufactured an Enhanced Grunt 20333 | -4/Cetus | Manufactured an Enhanced Grunt 20357 | -4/Cetus | Spotted Cetus Guard 20358 | -4/Cetus | Manufactured an Enhanced Grunt 20358 | -4/Cetus | Spotted Cetus Guard 20359 | -4/Cetus | Spotted Cetus Guard 20361 | -4/Cetus | Spotted Cetus Guard 20364 | -4/Cetus | Allies destroyed Cetus Guard 20371 | -4/Cetus | Allies destroyed Cetus Guard 20372 | -4/Cetus | Allies destroyed Cetus Guard 20372 | -4/Cetus | Allies destroyed Cetus Guard 20377 | -4/Cetus | Discovered exit to Research (range 15) 20383 | -4/Cetus | Manufactured an Enhanced Grunt 20387 | -4/Cetus | Met Revision 17 20715 | -4/Cetus | Entered Archives 20715 | -4/Archives | Accompanied by 19 allies (A7) 20757 | -4/Archives | Unable to access archive contents 20780 | -4/Archives | Lost 3 allies 20796 | -4/Archives | Discovered new exit (range 15) 20836 | -4/Archives | Discovered new exit (range 13) 20907 | -4/Archives | Discovered exit to Research (range 15) 21253 | -4/Archives | Entered Hub_04(d) 21253 | -4/Hub_04(d) | Accompanied by 15 allies 21391 | -4/Hub_04(d) | Discovered exit to Research (range 10) 21393 | -4/Hub_04(d) | Discovered exit to Research (range 4) 21422 | -4/Hub_04(d) | Lost 6 allies 21632 | -4/Hub_04(d) | Lost 6 allies 21750 | -4/Hub_04(d) | Network Hub disabled 21753 | -4/Hub_04(d) | First assault squad dispatched 21801 | -4/Hub_04(d) | Build established: Scavenger-Tank 21828 | -4/Hub_04(d) | Spotted Lightning 21936 | -4/Hub_04(d) | Spotted Lightning 21938 | -4/Hub_04(d) | Spotted Lightning 21943 | -4/Hub_04(d) | Network Hub disabled 21959 | -4/Hub_04(d) | Entered Research 21959 | -3/Research | Evolved 2 slots: Utility x2 21960 | -3/Research | Identified exit to Armory 21960 | -3/Research | Identified exit to Testing 21961 | -3/Research | Loaded intel: 4 repair station locations 22059 | -3/Research | Discovered new exit (range 10) 22159 | -3/Research | Revision forces began assault on 0b10 22221 | -3/Research | Met up with Revision 17++ 22334 | -3/Research | Discovered new exit (range 9) 22407 | -3/Research | Found Prototype Launcher 22407 | -3/Research | Identified Adv. Micro-nuke Launcher 22408 | -3/Research | Identified exit to Research 22659 | -3/Research | Research terminal network offline 22792 | -3/Research | Entered Testing 22854 | -3/Testing | Found Prototype Hackware 22854 | -3/Testing | Identified Exp. Hacking Suite 22948 | -3/Testing | Found Prototype Energy Cannon 23042 | -3/Testing | Found Prototype Ballistic Cannon 23042 | -3/Testing | Identified Perforator 23048 | -3/Testing | Identified Disintegrator 23487 | -3/Testing | Found Prototype Device 23487 | -3/Testing | Identified AEGIS Remote Shield 23553 | -3/Testing | Found Exp. Thermal Shield 23683 | -3/Testing | Found Prototype Device 23683 | -3/Testing | Identified Exp. Hardlight Generator 23710 | -3/Testing | System corruption reached 10% 23789 | -3/Testing | Spotted Striker 23899 | -3/Testing | Found Prototype Energy Cannon 24004 | -3/Testing | Found Prototype Launcher 24004 | -3/Testing | Identified Z-bomb Delivery System 24072 | -3/Testing | Entered Research 24072 | -2/Research | Warlord forces began assault on 0b10 24072 | -2/Research | Evolved 2 slots: Power x1, Utility x1 24093 | -2/Research | Found Exp. Core Analyzer 24182 | -2/Research | Research machine network offline 24262 | -2/Research | Destroyed 10 combat bots 24314 | -2/Research | Borebot progress halted 24578 | -2/Research | Spotted Striker 24599 | -2/Research | Borebot progress halted 24620 | -2/Research | Discovered new exit (range 7) 24651 | -2/Research | Borebot progress halted 24699 | -2/Research | Lost 3 allies 24724 | -2/Research | Found Prototype Processor 24724 | -2/Research | Identified Exp. Targeting Computer 24730 | -2/Research | Found Prototype Device 24730 | -2/Research | Identified Adv. Kinecellerator 24836 | -2/Research | Spotted Striker 24838 | -2/Research | Spotted Striker 24842 | -2/Research | Destroyed Striker 24842 | -2/Research | Discovered new exit (range 12) 24845 | -2/Research | Destroyed Striker 24850 | -2/Research | Spotted Striker 24860 | -2/Research | Destroyed Striker 24879 | -2/Research | Lost 8 allies 24881 | -2/Research | Destroyed 12 combat bots 24893 | -2/Research | Spotted Executioner 24897 | -2/Research | Entered Quarantine 24942 | -2/Quarantine | Cryocooling Duct disabled 24943 | -2/Quarantine | P-80 Master assimilated allied LY-3CQ(B) 24947 | -2/Quarantine | Spotted LY-3CQ(B) 24956 | -2/Quarantine | Cryocooling Duct disabled 24957 | -2/Quarantine | Ambient heat levels rising (+20) 24957 | -2/Quarantine | Non-combat units ordered to evacuate 24971 | -2/Quarantine | Ambient heat levels rising (+20) 24971 | -2/Quarantine | Combat units ordered to evacuate 25071 | -2/Quarantine | Quarantine Guard activated 25096 | -2/Quarantine | Spotted Quarantine Guard 25098 | -2/Quarantine | Spotted Quarantine Guard 25099 | -2/Quarantine | Spotted Quarantine Guard 25100 | -2/Quarantine | Destroyed Quarantine Guard 25101 | -2/Quarantine | Spotted Quarantine Guard 25117 | -2/Quarantine | Destroyed Quarantine Guard 25129 | -2/Quarantine | Destroyed Quarantine Guard 25133 | -2/Quarantine | Destroyed Quarantine Guard 25290 | -2/Quarantine | Identified exit to Access 25298 | -2/Quarantine | Spotted Quarantine Guard 25310 | -2/Quarantine | Spotted Quarantine Guard 25327 | -2/Quarantine | Destroyed Quarantine Guard 25393 | -2/Quarantine | Destroyed Quarantine Guard 25569 | -2/Quarantine | Spotted Quarantine Guard 25601 | -2/Quarantine | Destroyed Quarantine Guard 25681 | -2/Quarantine | Found Alien Launcher 25721 | -2/Quarantine | Found Alien Artifact 25721 | -2/Quarantine | Identified Terrabomb 25721 | -2/Quarantine | Used Terrabomb 25753 | -2/Quarantine | Spotted Quarantine Guard 25795 | -2/Quarantine | Destroyed Quarantine Guard 25845 | -2/Quarantine | Entered Access 25845 | -1/Access | Evolved 2 slots: Utility x2 26458 | -1/Access | Spotted B-99 Colossus 26489 | -1/Access | Destroyed B-99 Colossus 27006 | -1/Access | Identified exit to Command 27065 | -1/Access | Garrison activated, responded to threat 27069 | -1/Access | System corruption reached 10% 27095 | -1/Access | First assault squad dispatched 27165 | -1/Access | Spotted B-99 Colossus 27167 | -1/Access | Spotted B-99 Colossus 27185 | -1/Access | Entered Command 27300 | -1/Command | Disengaged cave seal 27300 | -1/Command | Derelicts emerged from the dark tunnel 27301 | -1/Command | Welcomed Warlord to Command 27329 | -1/Command | Disengaged cave seal 27329 | -1/Command | Derelicts emerged from the dark tunnel 27443 | -1/Command | P-80 Master assimilated allied 96-1CB(h) 27444 | -1/Command | P-80 Master assimilated allied AD-UP0(h) 27479 | -1/Command | Lost 9 allies 27503 | -1/Command | Spotted B-99 Colossus 27507 | -1/Command | Destroyed B-99 Colossus 27794 | -1/Command | Spotted B-99 Colossus 27806 | -1/Command | Destroyed B-99 Colossus 27833 | -1/Command | Warlord commented on Warlord statues 27861 | -1/Command | Identified Sigix Terminator 27874 | -1/Command | Spotted M Guard 27875 | -1/Command | Spotted Combat Programmer 27882 | -1/Command | Fired Sigix Terminator 27909 | -1/Command | Destroyed M Guard 27925 | -1/Command | All MAIN.C guards destroyed 28021 | -1/Command | Met MAIN.C 28023 | -1/Command | Warlord shut down involuntarily 28094 | -1/Command | Lost 3 parts (1n2u) 28100 | -1/Command | Destroyed MAIN.C Shell 28103 | -1/Command | MAIN.C activated Command garrisons 28156 | -1/Command | System corruption reached 30% 28159 | -1/Command | Released all parts (4) 28162 | -1/Command | Core integrity fell below 50% 28165 | -1/Command | Core integrity fell below 20% 28167 | -1/Command | Destroyed by H-88 Terminator with Heavy Machine Gun Last Messages --------------- 28160_ S-43 Plague destroyed. 28160_ Penetrated by Slug. 28160_ Centrium Heavy Treads destroyed. 28161_ Penetrated by Slug. 28161_ P-80 Master resets G-73 Enforcer, system corruption cleaned. 28161_ Penetrated by Slug. 28162_ The unstable cave ceiling collapses. 28162_ C-30 ARC crushed by falling debris. 28162_ Penetrated by Slug. 28162_ Acquired 16 matter. 28162_ S-43 Plague destroyed. 28162_ Slug penetrates Reinforced Barrier. 28163_ Acquired 36 matter. 28163_ C-30 ARC bursts open, deploying its payload. 28163_ P-80 Master unfolds itself. 28164_ Penetrated by Slug. 28165_ Slug penetrates G-73 Enforcer. 28167_ Penetrated by Slug. Map ----- +----------------------------------------------------+ | ?????????????????????????????????????????????????? | | ?????????????????????????????????????????????????? | | ?????????????????????????????????????????????????? | | ?????????????????????????????????????????????????? | | ?????????????????????????????????????????????????? | | ?????????????????????????????????????????????????? | | ?????????????????????????????????????????????????? | | ?????????????????????????????????????????????????? | | ?????????????????????????????????????????????????? | | ?????????????????????????????????????????????????? | | ?????????????????????????????????????????????????? | | ?????????????????????????????????????????????????? | | ?????????????????????????????????????????????????? | | ??????????????????????????????????????????????" ? | | ????????????????????????????????????????????? " | | ????????????????????????????###???????????#?? " | | ??????????????????????????### #??????????? ## " | | ??????????????????????????# # ######?????# " | | ????????????????????????### ; ; # #?????# " | | ???????????#######??????? # ; # ##????# "" | | ?????????"""" ????####;;;;;;;;;###### "%" | | ?????????"" ???# # # # "%" | | ?????????"" % #####;;%;;;;;;;;;;;"""# " | | ?????????"" %%%+% hp%hh #"#%" | | ?????????"" %M%; % pp*pggg "%%#%%" | | ????????"" %%% +% @ ss!pg= g "%#"" | | ?????????" ######;;;;;;!!!%g=;g """%" | | ?????????" ???# *]%* ;h " " | | ?????????" ????##""""";;;;;;;;; "" " | | ????????? "???# " " " ; " " | | ????????? """""????# " " " """"""" | | ?????????? """""""????# " " " | | ??????????""???"""?????# " " " | | ???????????????????????# " " " | | ???????????????????????# " " " | | ???????????????????????# " " " # | | ???????????????????????# " " " """ | | ???????????????????????# " " " " " | | ???????????????????????# " " " """" | | ???????????????????????## " " " " | | ????????????????????????? " " " " | | ????????????????????????????" " " " | | ????????????????????????????????? " | | ??????????????????????????????????? " | | ????????????????????????????????????? " | | ??????????????????????????????????????? " | | ????????????????????????????????????????? " | | ???????????????????????????????????????????? " *% | | ??????????????????????????????????????????????" | | ?????????????????????????????????????????????????? | +----------------------------------------------------+ Best States ------------- Heat Dissipation 163 Coolant Potential 120 Energy Generation 77 Energy Capacity 1450 Matter Stores 313 Matter Capacity 600 Sight Range 22 Robot Scan Range 15 Terrain Scan Range 24 Terrain Scan Density 10 Jamming Range 14 Armor Coverage 1350 Resistance: TH 30 Resistance: EX 50 Weapon Shielding 100 Point Defense Rating 240 Weapon Cycling 20 Phase Shifting 10 Evasion (%) 55 Targeting Accuracy 12 Target Analysis 8 Core Analysis 8 Recoil Reduction 6 Matter Filtering 30 Particle Charging 25 Kinecelleration 50 Offensive Hacking 16 Authchip Count 2 Trap Extractor Capacity 8 Item Schematics ----------------- Matter Compressor | -6/Zion | Archive Disruptor Cannon | -6/Zion | Archive Imp. Shock Absorption System | -6/Zion | Archive IFF Parser | -6/Zion | Archive Mni. Drone Bay | -6/Zion | Archive Power Amplifier | -6/Zion | Archive Railgun | -6/Zion | Archive Imp. Recalibrator | -6/Zion | Archive Adv. Sensor Array | -6/Zion | Archive Adv. Terrain Scanner | -6/Zion | Archive Imp. Focal Shield | -6/Zion | Archive Imp. Medium Treads | -6/Zion | Archive Wave Gun | -6/Zion | Archive Centrium Wheel | -6/Zion | Archive Multireflex Exoskeleton | -5/Factory | Scanalyzed Centrium Medium Armor Plating | -2/Quarantine | Scanalyzed Robot Schematics ------------------ B-48 Gladiator | -6/Zion | Archive T-07 Excavator | -6/Zion | Archive K-01 Serf | -6/Zion | Archive Y-72 Warden | -6/Zion | Archive Fabricated ------------ Centrium Wheel | x2 | -5/Factory | Authchip Repaired ---------- Lgt. Treads | 63% | -7/Factory Arm. Wheel | 21% | -4/Factory Imp. Heavy Treads | 60% | -4/Extension Alien Tech Used ----------------- Terrabomb Sigix Terminator Achievements -------------- It Was An Accident, I Swear No Explosion For You Challenges ------------ None Game ------ Seed SpacefoldCouplerAmplifier Manual? 0 Play Time 08:33:53 Cumulative 281.1 hours Start 2025.06.25 @ 18:31:50 End 2025.06.27 @ 19:30:07 Sessions 29 Manual Loads 0 Difficulty Rogue Special Mode None Game No. 54 Rogue 54 Adventurer 0 Explorer 0 Win Type - Total 8 Types 4/0/2/1/0/0/0/1/0/0 Lore% 71 Gallery% 66 Achievement% 68 Wizard Run 0 Options --------- Layout 2 ASCII 0 Keyboard 1 Movement Vi Keybinds 1 Fullscreen 1 Font 24/Tamsyn Map View 50x44 Zoom Use 0% Tactical HUD 1 Map Filters NONE Filters NONE Steam 1 RUN: 208a4069-165d-4f37-b8a0-2c3ab49758f8